fUST/lending_fUST_20250720
["ID","MTS","AMOUNT","RATE_DAILY","PERIOD"]
[373414899,1752991841439,-460.0,0.00017638,2]
[373414900,1752991841449,-605.92605273,0.00017638,2]
[373414901,1752991841457,-460.0,0.00017638,2]
[373414902,1752991841466,-460.0,0.00017638,2]
[373414903,1752991841475,-460.0,0.00017638,2]
[373414904,1752991841485,-460.0,0.00017638,2]
[373414905,1752991841494,-460.0,0.00017638,2]
[373414906,1752991841503,-460.0,0.00017638,2]
[373414907,1752991841513,-330.17594042,0.00017638,2]
[373414908,1752991841522,-460.0,0.00017638,2]
[373414909,1752991841531,-460.0,0.00017638,2]
[373414910,1752991841540,-460.0,0.00017638,2]
[373414911,1752991841549,-602.1,0.00017638,2]
[373414912,1752991841558,-818.66,0.00017638,2]
[373414913,1752991841567,-720.97125658,0.00017659,2]
[373414914,1752991841576,-460.0,0.00017736,2]
[373414915,1752991841585,-563.45625718,0.00017736,2]
[373414916,1752991841595,-172.80804998,0.00017736,2]
[373414917,1752991841604,-460.0,0.00017736,2]
[373414918,1752991841613,-523.47508925,0.00017736,2]
[373414919,1752991841623,-389.09382303,0.00017736,2]
[373414920,1752991841632,-463.15771446,0.00017736,2]
[373414921,1752991841641,-460.0,0.00017736,2]
[373414922,1752991841650,-460.0,0.00017736,2]
[373414923,1752991841659,-460.0,0.00017736,2]
[373414924,1752991841668,-460.0,0.00017736,2]
[373414925,1752991841678,-460.0,0.00017736,2]
[373414926,1752991841687,-460.0,0.00017736,2]
[373414927,1752991841695,-460.0,0.00017736,2]
[373414928,1752991841705,-480.23,0.00017736,2]
[373414929,1752991841716,-460.0,0.00017736,2]
[373414930,1752991841726,-460.0,0.00017736,2]
[373414931,1752991841736,-460.0,0.00017736,2]
[373414932,1752991841745,-460.0,0.00017736,2]
[373414933,1752991841755,-460.0,0.00017736,2]
[373414934,1752991841764,-460.0,0.00017736,2]
[373414935,1752991841773,-460.0,0.00017736,2]
[373414936,1752991841783,-460.0,0.00017736,2]
[373414937,1752991841892,-460.0,0.00017736,2]
[373414938,1752991841902,-460.0,0.00017736,2]
[373414939,1752991841913,-460.0,0.00017736,2]
[373414940,1752991841923,-460.0,0.00017736,2]
[373414941,1752991841933,-460.0,0.00017736,2]
[373414942,1752991841943,-460.0,0.00017736,2]
[373414943,1752991841952,-464.76866868,0.00017736,2]
[373414944,1752991841964,-465.51637816,0.00017736,2]
[373414945,1752991841975,-373.2597374,0.00017736,2]
[373414946,1752991841985,-559.77000321,0.00017736,2]
[373414947,1752991841995,-199.49605341,0.00017736,2]
[373414948,1752991842004,-460.0,0.00017736,2]
[373414949,1752991842014,-460.0,0.00017737,2]
[373414950,1752991842023,-292.80812658,0.00017737,2]
[373414951,1752991842033,-460.0,0.00017737,2]
[373414952,1752991842043,-460.0,0.00017737,2]
[373414953,1752991842052,-463.51996624,0.00017737,2]
[373414954,1752991842061,-460.0,0.00017737,2]
[373414955,1752991842071,-460.0,0.00017737,2]
[373414956,1752991842081,-460.0,0.00017737,2]
[373414957,1752991842090,-460.0,0.00017737,2]
[373414958,1752991842099,-281.60881534,0.00017737,2]
[373414959,1752991842109,-460.0,0.00017737,2]
[373414960,1752991842118,-460.0,0.00017737,2]
[373414961,1752991842128,-460.0,0.00017737,2]
[373414962,1752991842137,-460.0,0.00017737,2]
[373414963,1752991842146,-460.0,0.00017737,2]
[373414964,1752991842156,-460.0,0.00017737,2]
[373414965,1752991842165,-463.10556902,0.00017737,2]
[373414966,1752991842174,-460.0,0.00017737,2]
[373414967,1752991842184,-463.38609221,0.00017737,2]
[373414968,1752991842193,-621.87,0.00017737,2]
[373414969,1752991842202,-460.0,0.00017737,2]
[373414970,1752991842211,-460.0,0.00017737,2]
[373414971,1752991842221,-460.0,0.00017737,2]
[373414972,1752991842231,-460.0,0.00017737,2]
[373414973,1752991842241,-326.49561731,0.00017737,2]
[373414974,1752991842251,-460.0,0.00017737,2]
[373414975,1752991842260,-460.0,0.00017737,2]
[373414976,1752991842270,-1565.71,0.00017737,2]
[373414977,1752991842279,-588.11236343,0.00017738,2]
[373414978,1752991842289,-460.0,0.00017738,2]
[373414979,1752991842299,-460.0,0.00017738,2]
[373414980,1752991842308,-460.0,0.00017738,2]
[373414981,1752991842317,-460.0,0.00017738,2]
[373414982,1752991842327,-513.17,0.00017738,2]
[373414983,1752991842336,-460.0,0.00017739,2]
[373414984,1752991842345,-1198.03,0.00017739,2]
[373414985,1752991842354,-460.0,0.00017739,2]
[373414986,1752991842363,-460.0,0.00017739,2]
[373414987,1752991842372,-721.24,0.00017739,2]
[373414988,1752991842382,-735.7669569,0.00017804,2]
[373414989,1752991842391,-4792.98,0.00017837,2]
[373414990,1752991842400,-706.34,0.00017837,2]
[373414991,1752991842409,-1252.40936803,0.000179,2]
[373414992,1752991842419,-659.61,0.00017908,2]
[373414993,1752991842428,-460.0,0.00017909,2]
[373414994,1752991842437,-460.0,0.00017909,2]
[373414995,1752991842446,-460.0,0.00017909,2]
[373414996,1752991842456,-859.08,0.00017909,2]
[373414997,1752991842466,-460.0,0.00017909,2]
[373414998,1752991842476,-460.0,0.00017909,2]
[373414999,1752991842488,-522.2,0.00017909,2]
[373415000,1752991842500,-460.0,0.00017909,2]
[373415001,1752991842509,-460.0,0.00017909,2]
[373415002,1752991842519,-1544.74,0.00017909,2]
[373415003,1752991842528,-460.0,0.00017909,2]
[373415004,1752991842537,-460.0,0.00017909,2]
[373415005,1752991842547,-460.0,0.0001791,2]
[373415006,1752991842557,-474.0999898,0.0001791,2]
[373415007,1752991842566,-460.0,0.0001791,2]
[373415008,1752991842576,-460.0,0.0001791,2]
[373415009,1752991842586,-460.0,0.0001791,2]
[373415010,1752991842595,-460.0,0.0001791,2]
[373415011,1752991842604,-600.17323963,0.0001791,2]
[373415012,1752991842614,-460.0,0.0001791,2]
[373415013,1752991842624,-460.0,0.0001791,2]
[373415014,1752991842634,-460.0,0.0001791,2]
[373415015,1752991842643,-460.0,0.0001791,2]
[373415016,1752991842653,-460.0,0.0001791,2]
[373415017,1752991842662,-460.0,0.0001791,2]
[373415018,1752991842671,-460.0,0.0001791,2]
[373415019,1752991842680,-460.0,0.0001791,2]
[373415020,1752991842689,-460.0,0.0001791,2]
[373415021,1752991842698,-460.0,0.0001791,2]
[373415022,1752991842707,-460.0,0.0001791,2]
[373415023,1752991842718,-460.0,0.0001791,2]
[373415024,1752991842729,-460.0,0.0001791,2]
[373415025,1752991842738,-864.59,0.0001791,2]
[373415026,1752991842748,-460.0,0.0001791,2]
[373415027,1752991842757,-460.0,0.0001791,2]
[373415028,1752991842767,-460.0,0.0001791,2]
[373415029,1752991842776,-460.0,0.0001791,2]
[373415030,1752991842785,-460.0,0.0001791,2]
[373415031,1752991842795,-460.0,0.0001791,2]
[373415032,1752991842805,-460.0,0.0001791,2]
[373415033,1752991842814,-460.0,0.00017911,2]
[373415034,1752991842824,-460.0,0.00017911,2]
[373415035,1752991842834,-460.0,0.00017911,2]
[373415036,1752991842844,-498.50939823,0.00017911,2]
[373415037,1752991842853,-460.0,0.00017911,2]
[373415038,1752991842863,-467.76582936,0.00017911,2]
[373415039,1752991842872,-460.0,0.00017911,2]
[373415040,1752991842881,-460.0,0.00017912,2]
[373415041,1752991842890,-460.0,0.00017912,2]
[373415042,1752991842899,-460.0,0.00017912,2]
[373415043,1752991842909,-367.15050101,0.00017912,2]
[373415044,1752991842918,-460.0,0.00017912,2]
[373415045,1752991842927,-460.0,0.00017912,2]
[373415046,1752991842936,-460.0,0.00017912,2]
[373415047,1752991842945,-460.0,0.00017912,2]
[373415048,1752991842955,-602.1,0.00017912,2]
[373415049,1752991842965,-818.66,0.00017912,2]
[373415050,1752991842975,-465.63899924,0.0001801,2]
[373415051,1752991842986,-458.53198758,0.0001801,2]
[373415052,1752991842996,-460.0,0.0001801,2]
[373415053,1752991843006,-460.0,0.0001801,2]
[373415054,1752991843015,-460.0,0.0001801,2]
[373415055,1752991843025,-460.0,0.0001801,2]
[373415056,1752991843035,-460.0,0.0001801,2]
[373415057,1752991843044,-460.0,0.0001801,2]
[373415058,1752991843053,-460.0,0.0001801,2]
[373415059,1752991843063,-432.45527726,0.0001801,2]
[373415060,1752991843072,-460.0,0.0001801,2]
[373415061,1752991843081,-460.0,0.0001801,2]
[373415062,1752991843091,-490.5797553,0.0001801,2]
[373415063,1752991843100,-460.0,0.0001801,2]
[373415064,1752991843109,-460.0,0.0001801,2]
[373415065,1752991843118,-460.0,0.00018011,2]
[373415066,1752991843128,-460.0,0.00018011,2]
[373415067,1752991843137,-460.0,0.00018011,2]
[373415068,1752991843146,-460.0,0.00018011,2]
[373415069,1752991843156,-460.0,0.00018011,2]
[373415070,1752991843165,-460.0,0.00018011,2]
[373415071,1752991843175,-460.0,0.00018011,2]
[373415072,1752991843184,-621.87,0.00018011,2]
[373415074,1752991843193,-460.0,0.00018011,2]
[373415076,1752991843202,-1565.71,0.00018011,2]
[373415077,1752991843211,-456.94186764,0.00018012,2]
[373415078,1752991843221,-460.0,0.00018012,2]
[373415081,1752991843231,-460.0,0.00018012,2]
[373415082,1752991843241,-513.17,0.00018012,2]
[373415084,1752991843250,-460.0,0.00018013,2]
[373415086,1752991843259,-1198.03,0.00018013,2]
[373415089,1752991843269,-460.0,0.00018013,2]
[373415092,1752991843279,-460.0,0.00018013,2]
[373415095,1752991843288,-721.24,0.00018013,2]
[373415097,1752991843299,-500.0,0.00018021,2]
[373415099,1752991843308,-274.9127753,0.00018021,2]
[373415101,1752991843317,-500.0,0.00018021,2]
[373415104,1752991843327,-371.01099773,0.00018095,2]
[373415105,1752991843337,-500.0,0.00018095,2]
[373415106,1752991843347,-4792.98,0.00018111,2]
[373415107,1752991843358,-706.34,0.00018111,2]
[373415108,1752991843368,-1252.40936801,0.00018176,2]
[373415110,1752991843378,-659.61,0.00018182,2]
[373415112,1752991843388,-460.0,0.00018183,2]
[373415114,1752991843398,-460.0,0.00018183,2]
[373415116,1752991843408,-460.0,0.00018183,2]
[373415117,1752991843418,-859.08,0.00018183,2]
[373415118,1752991843427,-460.0,0.00018183,2]
[373415119,1752991843438,-460.0,0.00018183,2]
[373415120,1752991843448,-460.0,0.00018183,2]
[373415121,1752991843460,-460.0,0.00018183,2]
[373415122,1752991843470,-1544.74,0.00018183,2]
[373415123,1752991843481,-460.0,0.00018183,2]
[373415125,1752991843490,-460.0,0.00018183,2]
[373415126,1752991843499,-460.0,0.00018184,2]
[373415128,1752991843508,-460.0,0.00018184,2]
[373415129,1752991843519,-460.0,0.00018184,2]
[373415130,1752991843528,-460.0,0.00018184,2]
[373415131,1752991843538,-460.0,0.00018184,2]
[373415132,1752991843549,-460.0,0.00018184,2]
[373415133,1752991843559,-460.0,0.00018184,2]
[373415134,1752991843569,-460.0,0.00018184,2]
[373415135,1752991843579,-460.0,0.00018184,2]
[373415136,1752991843590,-460.0,0.00018184,2]
[373415138,1752991843600,-460.0,0.00018184,2]
[373415139,1752991843609,-460.0,0.00018184,2]
[373415141,1752991843619,-460.0,0.00018184,2]
[373415142,1752991843629,-460.0,0.00018184,2]
[373415143,1752991843641,-460.0,0.00018184,2]
[373415144,1752991843650,-460.0,0.00018184,2]
[373415146,1752991843659,-864.59,0.00018184,2]
[373415147,1752991843668,-460.0,0.00018184,2]
[373415148,1752991843677,-306.66,0.00018184,2]
[373415149,1752991843687,-460.0,0.00018184,2]
[373415150,1752991843696,-460.0,0.00018184,2]
[373415151,1752991843705,-460.0,0.00018184,2]
[373415152,1752991843717,-460.0,0.00018184,2]
[373415153,1752991843729,-460.0,0.00018184,2]
[373415154,1752991843738,-460.0,0.00018185,2]
[373415155,1752991843747,-460.0,0.00018185,2]
[373415156,1752991843758,-460.0,0.00018185,2]
[373415157,1752991843770,-460.0,0.00018185,2]
[373415158,1752991843781,-266.16,0.00018186,2]
[373415159,1752991843791,-460.0,0.00018186,2]
[373415160,1752991843802,-460.0,0.00018186,2]
[373415161,1752991843813,-460.0,0.00018186,2]
[373415162,1752991843824,-460.0,0.00018186,2]
[373415163,1752991843835,-602.1,0.00018186,2]
[373415164,1752991843847,-818.66,0.00018186,2]
[373415165,1752991843856,-460.0,0.00018284,2]
[373415166,1752991843866,-460.0,0.00018284,2]
[373415167,1752991843877,-460.0,0.00018284,2]
[373415168,1752991843889,-225.03217727,0.00018284,2]
[373415169,1752991843899,-460.0,0.00018284,2]
[373415171,1752991843908,-460.0,0.00018284,2]
[373415173,1752991843918,-460.0,0.00018284,2]
[373415175,1752991843927,-460.0,0.00018284,2]
[373415177,1752991843937,-460.0,0.00018284,2]
[373415178,1752991843946,-500.0,0.00018284,2]
[373415180,1752991843955,-500.0,0.00018284,2]
[373415182,1752991843966,-481.8134535,0.00018284,2]
[373415183,1752991843976,-348.92099452,0.00018284,2]
[373415184,1752991843986,-500.0,0.00018284,2]
[373415185,1752991843995,-500.0,0.00018284,2]
[373415186,1752991844004,-460.0,0.00018285,2]
[373415187,1752991844013,-460.0,0.00018285,2]
[373415188,1752991844022,-460.0,0.00018285,2]
[373415189,1752991844032,-460.0,0.00018285,2]
[373415190,1752991844041,-460.0,0.00018285,2]
[373415191,1752991844050,-621.87,0.00018285,2]
[373415192,1752991844059,-460.0,0.00018285,2]
[373415193,1752991844069,-1565.71,0.00018285,2]
[373415194,1752991844078,-513.17,0.00018286,2]
[373415195,1752991844087,-460.0,0.00018287,2]
[373415196,1752991844096,-1198.03,0.00018287,2]
[373415197,1752991844106,-460.0,0.00018287,2]
[373415198,1752991844115,-721.24,0.00018287,2]
[373415199,1752991844125,-735.7669569,0.00018308,2]
[373415200,1752991844134,-4792.98,0.00018385,2]
[373415201,1752991844143,-706.34,0.00018385,2]
[373415202,1752991844152,-274.76400993,0.00018411,2]
[373415203,1752991844162,-1252.40936801,0.00018452,2]
[373415204,1752991844171,-659.61,0.00018456,2]
[373415205,1752991844181,-460.0,0.00018457,2]
[373415206,1752991844190,-460.0,0.00018457,2]
[373415207,1752991844200,-460.0,0.00018457,2]
[373415208,1752991844209,-859.08,0.00018457,2]
[373415209,1752991844218,-460.0,0.00018457,2]
[373415210,1752991844227,-460.0,0.00018457,2]
[373415211,1752991844237,-460.0,0.00018457,2]
[373415212,1752991844246,-1544.74,0.00018457,2]
[373415213,1752991844255,-460.0,0.00018457,2]
[373415214,1752991844264,-460.0,0.00018457,2]
[373415215,1752991844274,-467.38602632,0.00018458,2]
[373415216,1752991844283,-460.0,0.00018458,2]
[373415217,1752991844292,-225.85,0.00018458,2]
[373415218,1752991844301,-460.0,0.00018458,2]
[373415219,1752991844311,-460.0,0.00018458,2]
[373415220,1752991844319,-460.0,0.00018458,2]
[373415221,1752991844328,-460.0,0.00018458,2]
[373415222,1752991844338,-460.0,0.00018458,2]
[373415223,1752991844347,-460.0,0.00018458,2]
[373415224,1752991844356,-460.0,0.00018458,2]
[373415225,1752991844365,-460.0,0.00018458,2]
[373415226,1752991844374,-460.0,0.00018458,2]
[373415227,1752991844383,-460.0,0.00018458,2]
[373415228,1752991844392,-460.0,0.00018458,2]
[373415229,1752991844401,-460.0,0.00018458,2]
[373415230,1752991844410,-460.0,0.00018458,2]
[373415231,1752991844419,-864.59,0.00018458,2]
[373415232,1752991844429,-460.0,0.00018458,2]
[373415233,1752991844438,-460.0,0.00018458,2]
[373415234,1752991844447,-460.0,0.00018458,2]
[373415235,1752991844456,-460.0,0.00018458,2]
[373415236,1752991844557,-559.79470352,0.00018458,2]
[373415237,1752991844566,-460.0,0.00018459,2]
[373415238,1752991844575,-470.8700511,0.00018459,2]
[373415239,1752991844584,-460.0,0.00018459,2]
[373415240,1752991844593,-460.0,0.0001846,2]
[373415241,1752991844602,-460.0,0.0001846,2]
[373415242,1752991844611,-460.0,0.0001846,2]
[373415243,1752991844621,-602.1,0.0001846,2]
[373415244,1752991844629,-818.66,0.0001846,2]
[373415245,1752991844638,-460.0,0.00018558,2]
[373415246,1752991844647,-460.0,0.00018558,2]
[373415247,1752991844657,-460.0,0.00018558,2]
[373415248,1752991844666,-460.0,0.00018558,2]
[373415249,1752991844675,-311.68162522,0.00018558,2]
[373415250,1752991844684,-460.0,0.00018559,2]
[373415251,1752991844693,-460.0,0.00018559,2]
[373415252,1752991844702,-621.87,0.00018559,2]
[373415253,1752991844711,-460.0,0.00018559,2]
[373415254,1752991844720,-1565.71,0.00018559,2]
[373415255,1752991844731,-513.17,0.0001856,2]
[373415256,1752991844741,-460.0,0.00018561,2]
[373415257,1752991844750,-1198.03,0.00018561,2]
[373415258,1752991844759,-460.0,0.00018561,2]
[373415260,1752991844768,-721.24,0.00018561,2]
[373415262,1752991844779,-274.06147548,0.00018643,2]
[373415263,1752991844789,-4792.98,0.00018659,2]
[373415264,1752991844798,-706.34,0.00018659,2]
[373415265,1752991844808,-666.02,0.00018724,3]
[373415266,1752991844820,-333.02,0.00018724,3]
[373415267,1752991844829,-1332.04,0.00018725,3]
[373415268,1752991844839,-1252.40936801,0.00018728,2]
[373415269,1752991844848,-659.61,0.0001873,2]
[373415270,1752991844858,-460.0,0.00018731,2]
[373415271,1752991844867,-460.0,0.00018731,2]
[373415272,1752991844876,-460.0,0.00018731,2]
[373415273,1752991844886,-859.08,0.00018731,2]
[373415274,1752991844896,-460.0,0.00018731,2]
[373415275,1752991844905,-460.0,0.00018731,2]
[373415276,1752991844914,-460.0,0.00018731,2]
[373415277,1752991844924,-1544.74,0.00018731,2]
[373415278,1752991844933,-460.0,0.00018731,2]
[373415279,1752991844942,-460.0,0.00018731,2]
[373415280,1752991844951,-460.0,0.00018732,2]
[373415281,1752991844960,-460.0,0.00018732,2]
[373415282,1752991844970,-473.88,0.00018732,2]
[373415283,1752991844980,-460.0,0.00018732,2]
[373415284,1752991844990,-460.0,0.00018732,2]
[373415285,1752991844999,-460.0,0.00018732,2]
[373415286,1752991845009,-460.0,0.00018732,2]
[373415287,1752991845018,-460.0,0.00018732,2]
[373415288,1752991845028,-460.0,0.00018732,2]
[373415289,1752991845037,-460.0,0.00018732,2]
[373415290,1752991845046,-460.0,0.00018732,2]
[373415291,1752991845055,-537.19383874,0.00018732,2]
[373415292,1752991845065,-864.59,0.00018732,2]
[373415293,1752991845075,-460.0,0.00018732,2]
[373415294,1752991845084,-460.0,0.00018732,2]
[373415295,1752991845093,-460.0,0.00018732,2]
[373415296,1752991845102,-454.5608512,0.00018732,2]
[373415297,1752991845112,-460.0,0.00018733,2]
[373415298,1752991845122,-460.0,0.00018733,2]
[373415299,1752991845136,-476.84657771,0.00018734,2]
[373415300,1752991845146,-407.14023351,0.00018734,2]
[373415301,1752991845155,-529.51,0.00018734,2]
[373415302,1752991845164,-602.1,0.00018734,2]
[373415303,1752991845173,-818.66,0.00018734,2]
[373415304,1752991845181,-735.7669569,0.00018812,2]
[373415305,1752991845190,-460.0,0.00018832,2]
[373415306,1752991845200,-460.0,0.00018832,2]
[373415307,1752991845209,-460.0,0.00018832,2]
[373415308,1752991845218,-621.87,0.00018833,2]
[373415309,1752991845227,-460.0,0.00018833,2]
[373415310,1752991845236,-1565.71,0.00018833,2]
[373415311,1752991845245,-513.17,0.00018834,2]
[373415312,1752991845254,-460.0,0.00018835,2]
[373415313,1752991845263,-1198.03,0.00018835,2]
[373415314,1752991845272,-460.0,0.00018835,2]
[373415315,1752991845282,-721.24,0.00018835,2]
[373415316,1752991845291,-4792.98,0.00018933,2]
[373415317,1752991845301,-706.34,0.00018933,2]
[373415318,1752991845309,-420.0,0.00018948,2]
[373415319,1752991845318,-500.0,0.00018955,2]
[373415320,1752991845327,-1252.40936801,0.00019003,2]
[373415321,1752991845336,-659.61,0.00019004,2]
[373415322,1752991845346,-460.0,0.00019005,2]
[373415323,1752991845355,-460.0,0.00019005,2]
[373415324,1752991845364,-460.0,0.00019005,2]
[373415325,1752991845373,-859.08,0.00019005,2]
[373415326,1752991845383,-460.0,0.00019005,2]
[373415327,1752991845392,-501.84716513,0.00019005,2]
[373415328,1752991845401,-460.0,0.00019005,2]
[373415329,1752991845410,-1544.74,0.00019005,2]
[373415330,1752991845420,-280.18,0.00019005,2]
[373415331,1752991845430,-460.0,0.00019005,2]
[373415332,1752991845439,-164.31,0.00019006,2]
[373415333,1752991845448,-601.45,0.00019006,2]
[373415334,1752991845457,-460.0,0.00019006,2]
[373415335,1752991845466,-460.0,0.00019006,2]
[373415336,1752991845476,-460.0,0.00019006,2]
[373415337,1752991845485,-460.0,0.00019006,2]
[373415338,1752991845494,-460.0,0.00019006,2]
[373415339,1752991845503,-313.52,0.00019006,2]
[373415340,1752991845512,-439.73831645,0.00019006,2]
[373415341,1752991845522,-864.59,0.00019006,2]
[373415342,1752991845531,-460.0,0.00019006,2]
[373415343,1752991845540,-460.0,0.00019006,2]
[373415344,1752991845549,-460.0,0.00019006,2]
[373415345,1752991845558,-460.0,0.00019007,2]
[373415346,1752991845567,-602.1,0.00019008,2]
[373415347,1752991845577,-818.66,0.00019008,2]
[373415348,1752991845587,-501.71492827,0.00019023,2]
[373415349,1752991845598,-506.73499596,0.00019023,2]
[373415350,1752991845607,-480.0,0.00019041,2]
[373415351,1752991845616,-481.36376178,0.00019106,2]
[373415352,1752991845626,-460.0,0.00019106,2]
[373415353,1752991845635,-621.87,0.00019107,2]
[373415354,1752991845644,-460.0,0.00019107,2]
[373415355,1752991845654,-513.17,0.00019108,2]
[373415356,1752991845663,-460.0,0.00019109,2]
[373415357,1752991845673,-1198.03,0.00019109,2]
[373415358,1752991845682,-460.0,0.00019109,2]
[373415359,1752991845692,-721.24,0.00019109,2]
[373415360,1752991845701,-182.509569,0.00019178,2]
[373415361,1752991845710,-666.0,0.00019178,2]
[373415362,1752991845719,-4792.98,0.00019207,2]
[373415363,1752991845733,-706.34,0.00019207,2]
[373415364,1752991845742,-659.61,0.00019278,2]
[373415365,1752991845752,-206.81,0.00019279,2]
[373415366,1752991845761,-460.0,0.00019279,2]
[373415367,1752991845770,-460.0,0.00019279,2]
[373415368,1752991845779,-859.08,0.00019279,2]
[373415369,1752991845788,-460.0,0.00019279,2]
[373415370,1752991845797,-561.27792919,0.00019279,2]
[373415371,1752991845806,-1544.74,0.00019279,2]
[373415372,1752991845815,-460.0,0.00019279,2]
[373415373,1752991845824,-1252.40936801,0.00019279,2]
[373415374,1752991845833,-460.0,0.0001928,2]
[373415375,1752991845842,-366.02,0.0001928,2]
[373415376,1752991845850,-460.0,0.0001928,2]
[373415377,1752991845859,-460.0,0.0001928,2]
[373415378,1752991845867,-606.62721038,0.0001928,2]
[373415379,1752991845876,-864.59,0.0001928,2]
[373415380,1752991845885,-460.0,0.0001928,2]
[373415381,1752991845893,-460.0,0.0001928,2]
[373415382,1752991845902,-460.0,0.00019281,2]
[373415383,1752991845911,-602.1,0.00019282,2]
[373415384,1752991845920,-818.66,0.00019282,2]
[373415385,1752991845930,-735.7669569,0.00019316,2]
[373415386,1752991845939,-100000.0,0.00019329,2]
[373415387,1752991845949,-12615.16111038,0.00019337,2]
[373415388,1752991845958,-215.71456056,0.00019337,2]
[373415389,1752991845967,-160.0,0.00019337,2]
[373415390,1752991845976,-160.0,0.00019337,2]
[373415391,1752991845986,-160.0,0.00019337,2]
[373415392,1752991845996,-160.0,0.00019337,2]
[373415393,1752991846006,-160.0,0.00019337,2]
[373415394,1752991846015,-160.0,0.00019337,2]
[373415395,1752991846024,-525.91036056,0.00019337,2]
[373415396,1752991846034,-839.59621281,0.00019337,2]
[373415397,1752991846043,-160.0,0.00019337,2]
[373415398,1752991846052,-230.98123516,0.00019337,2]
[373415399,1752991846061,-214.5637056,0.00019337,2]
[373415400,1752991846071,-476.42619115,0.00019337,2]
[373415401,1752991846080,-465.21,0.0001938,2]
[373415402,1752991846089,-621.87,0.00019381,2]
[373415403,1752991846098,-460.0,0.00019381,2]
[373415404,1752991846108,-513.17,0.00019382,2]
[373415405,1752991846117,-460.0,0.00019383,2]
[373415406,1752991846126,-1198.03,0.00019383,2]
[373415407,1752991846137,-460.0,0.00019383,2]
[373415408,1752991846147,-721.24,0.00019383,2]
[373415409,1752991846157,-4792.98,0.00019481,2]
[373415410,1752991846166,-706.34,0.00019481,2]
[373415411,1752991846175,-659.61,0.00019552,2]
[373415412,1752991846184,-460.0,0.00019553,2]
[373415413,1752991846194,-460.0,0.00019553,2]
[373415414,1752991846203,-859.08,0.00019553,2]
[373415415,1752991846212,-460.0,0.00019553,2]
[373415416,1752991846222,-1544.74,0.00019553,2]
[373415417,1752991846231,-460.0,0.00019553,2]
[373415418,1752991846240,-460.0,0.00019554,2]
[373415419,1752991846250,-460.0,0.00019554,2]
[373415420,1752991846268,-460.0,0.00019554,2]
[373415422,1752991846278,-864.59,0.00019554,2]
[373415423,1752991846287,-193.97,0.00019554,2]
[373415424,1752991846297,-460.0,0.00019554,2]
[373415425,1752991846306,-446.0,0.00019555,2]
[373415426,1752991846315,-1252.40936801,0.00019555,2]
[373415427,1752991846325,-602.1,0.00019556,2]
[373415428,1752991846334,-818.66,0.00019556,2]
[373415429,1752991846343,-274.76400993,0.00019561,2]
[373415430,1752991846353,-621.87,0.00019655,2]
[373415431,1752991846362,-460.0,0.00019655,2]
[373415432,1752991846371,-513.17,0.00019656,2]
[373415433,1752991846380,-460.0,0.00019657,2]